lending/lending_fUSD_20250315
["ID","MTS","AMOUNT","RATE_DAILY","PERIOD"]
[356189669,1742053873482,-1175.34,0.00044109,120]
[356189670,1742053873491,-500.0,0.00044109,120]
[356189671,1742053873500,-502.34,0.00044109,120]
[356189672,1742053873510,-500.0,0.00044109,120]
[356189673,1742053873519,-500.0,0.00044109,120]
[356189674,1742053873529,-500.0,0.00044109,120]
[356189675,1742053873538,-533.95092211,0.00044109,120]
[356189676,1742053873548,-520.15,0.00044109,120]
[356189677,1742053873558,-500.0,0.00044109,120]
[356189678,1742053873567,-748.79,0.00044109,120]
[356189679,1742053873577,-557.88,0.00044109,120]
[356189680,1742053873587,-500.0,0.00044109,120]
[356189681,1742053873598,-500.0,0.00044109,120]
[356189682,1742053873611,-500.0,0.00044109,120]
[356189683,1742053873620,-500.0,0.00044109,120]
[356189684,1742053873630,-500.0,0.00044109,120]
[356189685,1742053873640,-500.0,0.00044109,120]
[356189686,1742053873650,-722.45,0.00044109,120]
[356189687,1742053873660,-669.08,0.00044109,120]
[356189688,1742053873669,-687.02,0.00044109,120]
[356189689,1742053873680,-510.97328462,0.00044109,120]
[356189690,1742053873690,-500.0,0.00044109,120]
[356189691,1742053873700,-535.88738584,0.00044109,120]
[356189692,1742053873710,-508.00046948,0.00044109,120]
[356189693,1742053873720,-500.0,0.00044109,120]
[356189694,1742053873730,-748.88,0.00044109,120]
[356189695,1742053873740,-663.09,0.00044109,120]
[356189696,1742053873751,-1173.43,0.00044109,120]
[356189697,1742053873761,-509.33544445,0.00044109,120]
[356189698,1742053873771,-500.0,0.00044109,120]
[356189699,1742053873780,-500.0,0.00044109,120]
[356189700,1742053873790,-500.0,0.00044109,120]
[356189701,1742053873800,-500.0,0.00044109,120]
[356189702,1742053873809,-847.66,0.00044109,120]
[356189703,1742053873819,-300.0,0.00044109,2]
[356189704,1742053873828,-514.7,0.00044109,120]
[356189705,1742053873838,-1163.67,0.00044109,120]
[356189706,1742053873848,-505.38868588,0.00044109,120]
[356189707,1742053873857,-500.0,0.00044109,120]
[356189708,1742053873867,-500.0,0.00044109,120]
[356189709,1742053873910,-500.0,0.00044109,120]
[356189710,1742053873962,-827.32,0.00044109,120]
[356189711,1742053874084,-1012.94,0.00044109,120]
[356189712,1742053874185,-500.0,0.00044109,120]
[356189713,1742053874311,-500.0,0.00044109,120]
[356189714,1742053874406,-747.63,0.00044109,120]
[356189715,1742053874519,-1386.77,0.00044109,120]
[356189716,1742053874668,-500.0,0.00044109,120]
[356189717,1742053874801,-500.0,0.00044109,120]
[356189718,1742053874901,-1376.82,0.00044109,120]
[356189719,1742053875003,-503.67335261,0.00044109,120]
[356189720,1742053875035,-500.0,0.00044109,120]
[356189721,1742053875049,-1597.18,0.00044109,10]
[356189722,1742053875062,-570.51,0.00044109,120]
[356189723,1742053875072,-500.0,0.00044109,120]
[356189724,1742053875082,-1441.32,0.00044109,120]
[356189725,1742053875093,-500.0,0.00044109,120]
[356189726,1742053875103,-500.0,0.00044109,120]
[356189727,1742053875112,-500.0,0.00044109,120]
[356189728,1742053875122,-500.0,0.00044109,120]
[356189729,1742053875132,-572.02,0.00044109,120]
[356189730,1742053875142,-500.0,0.00044109,120]
[356189731,1742053875151,-574.93,0.00044109,120]
[356189732,1742053875161,-2861.57,0.00044109,120]
[356189733,1742053875171,-500.0,0.00044109,120]
[356189734,1742053875180,-500.0,0.00044109,120]
[356189735,1742053875190,-1000.0,0.00044109,120]
[356189736,1742053875199,-500.0,0.00044109,120]
[356189737,1742053875208,-500.0,0.00044109,120]
[356189738,1742053875218,-500.0,0.00044109,120]
[356189739,1742053875227,-500.0,0.00044109,120]
[356189740,1742053875236,-500.0,0.00044109,120]
[356189741,1742053875246,-500.0,0.00044109,120]
[356189742,1742053875256,-500.0,0.00044109,120]
[356189743,1742053875266,-506.49418623,0.00044109,120]
[356189744,1742053875275,-555.57,0.00044109,120]
[356189745,1742053875285,-502.3235063,0.00044109,120]
[356189746,1742053875294,-500.0,0.00044109,120]
[356189747,1742053875303,-500.0,0.00044109,120]
[356189748,1742053875312,-500.0,0.00044109,120]
[356189749,1742053875321,-500.0,0.00044109,120]
[356189750,1742053875331,-500.0,0.00044109,120]
[356189751,1742053875340,-500.0,0.00044109,120]
[356189752,1742053875349,-500.0,0.00044109,120]
[356189753,1742053875358,-500.0,0.00044109,120]
[356189754,1742053875367,-501.78849747,0.00044109,120]
[356189755,1742053875376,-500.0,0.00044109,120]
[356189756,1742053875385,-500.0,0.00044109,120]
[356189757,1742053875394,-1228.87,0.00044109,120]
[356189758,1742053875403,-1049.4,0.00044109,120]
[356189759,1742053875412,-2411.92,0.00044109,120]
[356189760,1742053875421,-500.0,0.00044109,7]
[356189761,1742053875430,-1448.75,0.00044109,120]
[356189762,1742053875439,-1506.99,0.00044109,120]
[356189763,1742053875448,-500.0,0.00044109,120]
[356189764,1742053875457,-518.76533847,0.00044109,120]
[356189765,1742053875466,-2006.48,0.00044109,120]
[356189766,1742053875476,-500.0,0.00044109,120]
[356189767,1742053875485,-511.27769934,0.00044109,120]
[356189768,1742053875494,-500.0,0.00044109,120]
[356189769,1742053875503,-500.0,0.00044109,120]
[356189770,1742053875512,-500.0,0.00044109,120]
[356189771,1742053875521,-503.52809075,0.00044109,120]
[356189772,1742053875530,-1433.68,0.00044109,120]
[356189773,1742053875539,-500.0,0.00044109,120]
[356189774,1742053875548,-500.0,0.00044109,120]
[356189775,1742053875557,-500.0,0.00044109,120]
[356189776,1742053875566,-500.0,0.00044109,120]
[356189777,1742053875575,-828.85,0.00044109,120]
[356189778,1742053875584,-500.0,0.00044109,120]
[356189779,1742053875594,-500.0,0.00044109,120]
[356189780,1742053875604,-500.0,0.00044109,120]
[356189781,1742053875613,-500.0,0.00044109,120]
[356189782,1742053875623,-500.0,0.00044109,120]
[356189783,1742053875633,-500.0,0.00044109,120]
[356189784,1742053875643,-500.0,0.00044109,120]
[356189785,1742053875652,-500.0,0.00044109,120]
[356189786,1742053875663,-714.84,0.00044109,120]
[356189787,1742053875674,-587.09,0.00044109,120]
[356189788,1742053875684,-1381.6,0.00044109,120]
[356189789,1742053875695,-2000.0,0.00044109,30]
[356189790,1742053875706,-500.0,0.00044109,120]
[356189791,1742053875715,-500.0,0.00044109,120]
[356189792,1742053875725,-597.77,0.00044109,120]
[356189793,1742053875735,-508.25,0.00044109,120]
[356189794,1742053875744,-937.38,0.00044109,120]
[356189795,1742053875755,-500.0,0.00044109,120]
[356189796,1742053875764,-500.0,0.00044109,120]
[356189797,1742053875774,-500.0,0.00044109,120]
[356189798,1742053875783,-500.0,0.00044109,120]
[356189799,1742053875792,-200.0,0.00044109,7]
[356189800,1742053875802,-614.08139983,0.00044109,120]
[356189801,1742053875812,-504.91019235,0.00044109,120]
[356189802,1742053875821,-511.40153758,0.00044109,120]
[356189803,1742053875830,-500.0,0.00044109,120]
[356189804,1742053875840,-841.63,0.00044109,120]
[356189805,1742053875850,-500.0,0.00044109,120]
[356189806,1742053875859,-760.2,0.00044109,120]
[356189807,1742053875869,-481.16477184,0.00044109,120]
[356189808,1742053875878,-500.0,0.00044109,120]
[356189809,1742053875887,-377.12,0.00044109,120]
[356189810,1742053875897,-500.0,0.00044109,120]
[356189811,1742053875906,-500.0,0.00044109,120]
[356189812,1742053875916,-686.86,0.00044109,120]
[356189813,1742053875925,-644.35,0.00044109,120]
[356189814,1742053875934,-500.0,0.00044109,120]
[356189815,1742053875944,-500.0,0.00044109,120]
[356189816,1742053875953,-1449.8,0.00044109,120]
[356189817,1742053875963,-500.0,0.00044109,120]
[356189818,1742053875972,-500.0,0.00044109,120]
[356189819,1742053875982,-500.0,0.00044109,120]
[356189820,1742053875991,-500.0,0.00044109,120]
[356189821,1742053876002,-500.0,0.00044109,120]
[356189822,1742053876011,-747.56,0.00044109,120]
[356189823,1742053876021,-500.0,0.00044109,120]
[356189824,1742053876031,-500.0,0.00044109,120]
[356189825,1742053876040,-500.0,0.00044109,120]
[356189826,1742053876049,-500.0,0.00044109,120]
[356189827,1742053876059,-1423.66,0.00044109,120]
[356189828,1742053876070,-500.0,0.00044109,120]
[356189829,1742053876081,-500.0,0.00044109,120]
[356189830,1742053876092,-947.82,0.00044109,120]
[356189831,1742053876103,-500.0,0.00044109,120]
[356189832,1742053876114,-500.0,0.00044109,120]
[356189833,1742053876124,-415.52397834,0.00044109,120]
[356189834,1742053876135,-500.0,0.00044109,120]
[356189835,1742053876146,-1355.39,0.00044109,120]
[356189836,1742053876158,-163.91489865,0.00044109,120]
[356189837,1742053876170,-500.0,0.00044109,120]
[356189838,1742053876181,-500.0,0.00044109,120]
[356189839,1742053876191,-899.19,0.00044109,120]
[356189840,1742053876202,-329.90937125,0.00044109,120]
[356189841,1742053876213,-500.0,0.00044109,120]
[356189842,1742053876224,-500.0,0.00044109,120]
[356189843,1742053876236,-500.0,0.00044109,120]
[356189844,1742053876249,-1625.35,0.00044109,120]
[356189845,1742053876261,-934.02,0.00044109,120]
[356189846,1742053876273,-733.98,0.00044109,120]
[356189847,1742053876283,-500.0,0.00044109,120]
[356189848,1742053876295,-500.0,0.00044109,120]
[356189849,1742053876305,-500.0,0.00044109,120]
[356189850,1742053876316,-580.86,0.00044109,120]
[356189851,1742053876326,-590.4,0.00044109,120]
[356189852,1742053876337,-3163.61,0.00044109,120]
[356189853,1742053876348,-500.0,0.00044109,120]
[356189854,1742053876359,-500.0,0.00044109,120]
[356189855,1742053876369,-159.19161761,0.00044109,120]
[356189856,1742053876380,-1000.0,0.00044109,35]
[356189857,1742053876390,-500.0,0.00044109,120]
[356189858,1742053876400,-500.0,0.00044109,120]
[356189859,1742053876410,-500.0,0.00044109,120]
[356189860,1742053876421,-505.87339398,0.00044109,120]
[356189861,1742053876432,-500.0,0.00044109,120]
[356189862,1742053876442,-500.0,0.00044109,120]
[356189863,1742053876452,-500.0,0.00044109,120]
[356189864,1742053876463,-500.0,0.00044109,120]
[356189865,1742053876474,-500.0,0.00044109,120]
[356189866,1742053876485,-631.35,0.00044109,120]
[356189867,1742053876495,-500.0,0.00044109,120]
[356189868,1742053876505,-681.44,0.00044109,120]
[356189869,1742053876516,-503.73882099,0.00044109,120]
[356189870,1742053876525,-500.0,0.00044109,120]
[356189871,1742053876535,-1633.98,0.00044109,120]
[356189872,1742053876546,-500.0,0.00044109,120]
[356189873,1742053876563,-500.0,0.00044109,120]
[356189874,1742053876572,-500.0,0.00044109,120]
[356189875,1742053876582,-500.0,0.00044109,120]
[356189876,1742053876592,-500.0,0.00044109,120]
[356189877,1742053876604,-500.0,0.00044109,120]
[356189878,1742053876614,-500.0,0.00044109,120]
[356189879,1742053876624,-256.50035641,0.00044109,120]
[356189880,1742053876634,-500.0,0.00044109,120]
[356189881,1742053876646,-523.84,0.00044109,120]
[356189882,1742053876656,-621.49,0.00044109,60]
[356189883,1742053876667,-808.8,0.00044109,120]
[356189884,1742053876678,-500.0,0.00044109,120]
[356189885,1742053876690,-500.0,0.00044109,120]
[356189886,1742053876700,-500.0,0.00044109,120]
[356189887,1742053876711,-500.0,0.00044109,120]
[356189888,1742053876721,-500.0,0.00044109,120]
[356189889,1742053876733,-500.0,0.00044109,120]
[356189890,1742053876743,-500.0,0.00044109,120]
[356189891,1742053876753,-500.0,0.00044109,120]
[356189892,1742053876763,-500.0,0.00044109,120]
[356189893,1742053876773,-500.0,0.00044109,120]
[356189894,1742053876783,-500.0,0.00044109,120]
[356189895,1742053876794,-1301.84,0.00044109,120]
[356189896,1742053876804,-500.0,0.00044109,120]
[356189897,1742053876815,-759.47,0.00044109,120]
[356189898,1742053876831,-1221.57,0.00044109,120]
[356189899,1742053876840,-500.0,0.00044109,120]
[356189900,1742053876851,-500.0,0.00044109,120]
[356189901,1742053876862,-647.58,0.00044109,120]
[356189902,1742053876873,-500.0,0.00044109,120]
[356189903,1742053876883,-500.0,0.00044109,120]
[356189904,1742053876895,-500.0,0.00044109,120]
[356189905,1742053876906,-500.0,0.00044109,120]
[356189906,1742053876917,-519.0,0.00044109,120]
[356189907,1742053876928,-500.0,0.00044109,120]
[356189908,1742053876938,-2109.77,0.00044109,7]
[356189909,1742053876950,-500.0,0.00044109,120]
[356189910,1742053876961,-508.51676912,0.00044109,120]
[356189911,1742053876972,-500.0,0.00044109,120]
[356189912,1742053876983,-500.0,0.00044109,120]
[356189913,1742053876994,-500.0,0.00044109,120]
[356189914,1742053877006,-521.98748329,0.00044109,120]
[356189915,1742053877018,-500.0,0.00044109,120]
[356189916,1742053877030,-510.67098966,0.00044109,120]
[356189917,1742053877041,-1636.07,0.00044109,120]
[356189918,1742053877051,-1171.97,0.00044109,120]
[356189919,1742053877062,-500.0,0.00044109,120]
[356189920,1742053877073,-500.0,0.00044109,120]
[356189921,1742053877085,-553.02,0.00044109,120]
[356189922,1742053877095,-842.43,0.00044109,120]
[356189923,1742053877106,-1130.0,0.00044109,120]
[356189924,1742053877116,-500.0,0.00044109,30]
[356189925,1742053877126,-500.0,0.00044109,120]
[356189926,1742053877136,-511.91812323,0.00044109,120]
[356189927,1742053877147,-500.0,0.00044109,120]
[356189928,1742053877157,-694.15,0.00044109,120]
[356189929,1742053877167,-500.0,0.00044109,120]
[356189930,1742053877179,-500.0,0.00044109,120]
[356189931,1742053877190,-500.0,0.00044109,45]
[356189932,1742053877200,-500.0,0.00044109,120]
[356189933,1742053877210,-500.0,0.00044109,120]
[356189934,1742053877220,-1744.4,0.00044109,120]
[356189935,1742053877230,-500.0,0.00044109,120]
[356189936,1742053877240,-1350.2,0.00044109,120]
[356189937,1742053877250,-500.0,0.00044109,120]
[356189938,1742053877261,-505.56590103,0.00044109,120]
[356189939,1742053877271,-990.04,0.00044109,120]
[356189940,1742053877281,-500.0,0.00044109,120]
[356189941,1742053877291,-500.0,0.00044109,120]
[356189942,1742053877300,-500.0,0.00044109,120]
[356189943,1742053877310,-150.0,0.0004411,30]
[356189944,1742053877320,-150.0,0.00044196,30]
[356189945,1742053877331,-999.0,0.00044199,120]
[356189946,1742053877340,-500.0,0.00044208,120]
[356189947,1742053877350,-431.80550813,0.00044218,30]
[356189948,1742053877361,-175.66532715,0.00044218,30]
[356189949,1742053877372,-1198.33674241,0.00044218,2]
[356189950,1742053877382,-803.99,0.00044239,2]
[356189951,1742053877392,-198.51,0.00044239,2]
[356189952,1742053877401,-150.0,0.00044284,120]
[356189953,1742053877411,-150.0,0.00044318,30]
[356189954,1742053877420,-431.80550813,0.00044329,30]
[356189955,1742053877430,-175.66532715,0.00044329,30]
[356189956,1742053877440,-200.0,0.00044331,120]
[356189957,1742053877449,-150.0,0.00044352,30]
[356189958,1742053877459,-3195.09,0.00044382,120]
[356189959,1742053877469,-3195.09,0.00044382,120]
[356189960,1742053877479,-3195.09,0.00044382,120]
[356189961,1742053877489,-1776.139583,0.00044383,120]
[356189962,1742053877499,-156.627222,0.00044383,120]
[356189963,1742053877509,-2211.484103,0.00044383,120]
[356189964,1742053877519,-561.4904674,0.00044383,120]
[356189965,1742053877529,-500.0,0.00044383,120]
[356189966,1742053877540,-500.0,0.00044383,120]
[356189967,1742053877550,-500.0,0.00044383,120]
[356189968,1742053877561,-500.0,0.00044383,120]
[356189969,1742053877571,-500.0,0.00044383,120]
[356189970,1742053877581,-500.0,0.00044383,120]
[356189971,1742053877591,-302.31262436,0.00044383,120]
[356189972,1742053877602,-508.44138475,0.00044383,120]
[356189973,1742053877613,-500.0,0.00044383,120]
[356189974,1742053877623,-702.17,0.00044383,120]
[356189975,1742053877632,-500.0,0.00044383,120]
[356189976,1742053877642,-500.0,0.00044383,120]
[356189977,1742053877654,-589.97290637,0.00044383,120]
[356189978,1742053877663,-500.0,0.00044383,120]
[356189979,1742053877674,-500.0,0.00044383,120]
[356189980,1742053877685,-500.0,0.00044383,120]
[356189981,1742053877696,-647.47,0.00044383,120]
[356189982,1742053877705,-513.74,0.00044383,120]
[356189983,1742053877715,-500.0,0.00044383,120]
[356189984,1742053877726,-625.37,0.00044383,120]
[356189985,1742053877735,-508.06307656,0.00044383,120]
[356189986,1742053877746,-500.0,0.00044383,120]
[356189987,1742053877756,-542.76077132,0.00044383,120]
[356189988,1742053877766,-630.90025541,0.00044383,120]
[356189989,1742053877776,-500.0,0.00044383,120]
[356189990,1742053877787,-500.0,0.00044383,120]
[356189991,1742053877797,-500.85771391,0.00044383,120]
[356189992,1742053877807,-500.0,0.00044383,30]
[356189993,1742053877817,-679.91,0.00044383,120]
[356189994,1742053877827,-500.0,0.00044383,120]
[356189995,1742053877837,-510.2604255,0.00044383,120]
[356189996,1742053877846,-500.0,0.00044383,120]
[356189997,1742053877856,-500.0,0.00044383,120]
[356189998,1742053877867,-500.0,0.00044383,120]
[356189999,1742053877877,-608.52,0.00044383,120]
[356190000,1742053877888,-512.34417187,0.00044383,120]
[356190001,1742053877897,-221.50226757,0.00044383,120]
[356190002,1742053877908,-500.0,0.00044383,120]
[356190003,1742053877919,-1500.0,0.00044383,120]
[356190004,1742053877929,-500.0,0.00044383,120]
[356190005,1742053878174,-500.0,0.00044383,120]
[356190006,1742053878184,-500.0,0.00044383,120]
[356190007,1742053878195,-500.0,0.00044383,120]
[356190008,1742053878205,-531.32,0.00044383,120]
[356190009,1742053878214,-509.13600663,0.00044383,120]
[356190010,1742053878224,-208.56843319,0.00044383,120]
[356190011,1742053878234,-261.42431793,0.00044383,120]
[356190012,1742053878244,-500.0,0.00044383,120]
[356190013,1742053878254,-500.0,0.00044383,120]
[356190014,1742053878264,-500.0,0.00044383,120]
[356190015,1742053878274,-500.0,0.00044383,120]
[356190016,1742053878284,-514.12,0.00044383,120]
[356190017,1742053878294,-653.7,0.00044383,120]
[356190018,1742053878304,-500.0,0.00044383,120]
[356190019,1742053878314,-500.0,0.00044383,120]
[356190020,1742053878325,-500.0,0.00044383,120]
[356190021,1742053878335,-500.0,0.00044383,120]
[356190022,1742053878345,-625.67,0.00044383,120]
[356190023,1742053878355,-500.0,0.00044383,120]
[356190024,1742053878364,-1473.36,0.00044383,120]
[356190025,1742053878374,-500.0,0.00044383,120]
[356190026,1742053878385,-627.43596238,0.00044383,120]
[356190027,1742053878395,-500.0,0.00044383,120]
[356190028,1742053878405,-500.0,0.00044383,120]
[356190029,1742053878415,-600.37329516,0.00044383,120]
[356190030,1742053878426,-500.0,0.00044383,120]
[356190031,1742053878436,-500.0,0.00044383,120]
[356190032,1742053878446,-500.0,0.00044383,120]
[356190033,1742053878456,-500.0,0.00044383,120]
[356190034,1742053878465,-500.0,0.00044383,120]
[356190035,1742053878475,-677.93,0.00044383,120]
[356190036,1742053878485,-500.0,0.00044383,120]
[356190037,1742053878495,-500.0,0.00044383,120]
[356190038,1742053878505,-500.0,0.00044383,120]
[356190039,1742053878515,-500.0,0.00044383,120]
[356190040,1742053878524,-500.0,0.00044383,120]
[356190041,1742053878535,-500.0,0.00044383,120]
[356190042,1742053878546,-682.77,0.00044383,120]
[356190043,1742053878555,-500.0,0.00044383,120]
[356190044,1742053878565,-500.0,0.00044383,120]
[356190045,1742053878575,-500.0,0.00044383,120]
[356190046,1742053878586,-500.0,0.00044383,120]
[356190047,1742053878597,-500.0,0.00044383,120]
[356190048,1742053878611,-1796.68,0.00044383,120]
[356190049,1742053878621,-500.0,0.00044383,120]
[356190050,1742053878631,-507.28878818,0.00044383,120]
[356190051,1742053878641,-500.0,0.00044383,120]
[356190052,1742053878651,-693.76,0.00044383,120]
[356190053,1742053878661,-500.0,0.00044383,120]
[356190054,1742053878671,-578.44,0.00044383,120]
[356190055,1742053878683,-802.0,0.00044383,120]
[356190056,1742053878693,-500.0,0.00044383,120]
[356190057,1742053878703,-613.47570712,0.00044383,120]
[356190058,1742053878713,-500.0,0.00044383,120]
[356190059,1742053878723,-500.0,0.00044383,120]
[356190060,1742053878733,-596.92,0.00044383,120]
[356190061,1742053878743,-500.0,0.00044383,120]
[356190062,1742053878753,-500.0,0.00044383,120]
[356190063,1742053878763,-500.0,0.00044383,120]
[356190064,1742053878774,-613.8285017,0.00044383,120]
[356190065,1742053878784,-500.0,0.00044383,120]
[356190066,1742053878795,-500.0,0.00044383,120]
[356190067,1742053878805,-627.64671211,0.00044383,120]
[356190068,1742053878815,-500.0,0.00044383,120]
[356190069,1742053878825,-926.94,0.00044383,120]
[356190070,1742053878834,-500.0,0.00044383,120]
[356190071,1742053878844,-1230.06,0.00044383,120]
[356190072,1742053878853,-500.0,0.00044383,120]
[356190073,1742053878863,-500.0,0.00044383,120]
[356190074,1742053878872,-514.26515265,0.00044383,120]
[356190075,1742053878883,-500.0,0.00044383,120]
[356190076,1742053878893,-500.0,0.00044383,120]
[356190077,1742053878904,-500.0,0.00044383,120]
[356190078,1742053878914,-534.58,0.00044383,120]
[356190079,1742053878924,-500.0,0.00044383,120]
[356190080,1742053878934,-500.0,0.00044383,120]
[356190081,1742053878944,-500.0,0.00044383,120]
[356190082,1742053878954,-500.0,0.00044383,120]
[356190083,1742053878964,-500.0,0.00044383,120]
[356190084,1742053878974,-500.0,0.00044383,120]
[356190085,1742053878984,-921.45,0.00044383,120]
[356190086,1742053878994,-508.43109419,0.00044383,120]
[356190087,1742053879004,-500.0,0.00044383,120]
[356190088,1742053879014,-500.0,0.00044383,120]
[356190089,1742053879024,-1727.43,0.00044383,120]
[356190090,1742053879034,-500.0,0.00044383,120]
[356190091,1742053879045,-500.0,0.00044383,120]
[356190092,1742053879055,-283.33313487,0.00044383,120]
[356190093,1742053879065,-517.98811429,0.00044383,120]
[356190094,1742053879076,-500.0,0.00044383,120]
[356190095,1742053879087,-599.91,0.00044383,120]
[356190096,1742053879096,-500.0,0.00044383,120]
[356190097,1742053879107,-871.26,0.00044383,120]
[356190098,1742053879117,-500.0,0.00044383,120]
[356190099,1742053879127,-500.0,0.00044383,120]
[356190100,1742053879136,-500.0,0.00044383,120]
[356190101,1742053879146,-500.0,0.00044383,120]
[356190102,1742053879156,-500.0,0.00044383,120]
[356190103,1742053879166,-500.0,0.00044383,120]
[356190104,1742053879176,-1169.75,0.00044383,120]
[356190105,1742053879186,-500.0,0.00044383,120]
[356190106,1742053879196,-2429.22,0.00044383,120]
[356190107,1742053879206,-500.0,0.00044383,120]
[356190108,1742053879216,-500.0,0.00044383,120]
[356190109,1742053879226,-500.0,0.00044383,120]
[356190110,1742053879235,-500.0,0.00044383,120]
[356190111,1742053879244,-500.0,0.00044383,120]
[356190112,1742053879254,-500.0,0.00044383,120]
[356190113,1742053879263,-500.0,0.00044383,120]
[356190114,1742053879274,-987.03,0.00044383,120]
[356190115,1742053879284,-562.6965958,0.00044383,120]
[356190116,1742053879294,-500.0,0.00044383,120]
[356190117,1742053879304,-500.0,0.00044383,120]
[356190118,1742053879313,-500.0,0.00044383,120]
[356190119,1742053879323,-500.0,0.00044383,120]
[356190120,1742053879332,-618.84951409,0.00044383,120]
[356190121,1742053879342,-500.0,0.00044383,120]
[356190122,1742053879351,-500.0,0.00044383,120]
[356190123,1742053879361,-500.0,0.00044383,120]
[356190124,1742053879370,-500.0,0.00044383,120]
[356190125,1742053879380,-1720.16,0.00044383,120]
[356190126,1742053879390,-1938.15,0.00044383,120]
[356190127,1742053879400,-500.0,0.00044383,120]
[356190128,1742053879409,-500.0,0.00044383,120]
[356190129,1742053879419,-1928.15,0.00044383,120]
[356190130,1742053879429,-993.96,0.00044383,120]
[356190131,1742053879439,-500.0,0.00044383,120]
[356190132,1742053879449,-992.83,0.00044383,120]
[356190133,1742053879458,-555.32,0.00044383,120]
[356190134,1742053879467,-500.0,0.00044383,120]
[356190135,1742053879476,-500.0,0.00044383,120]
[356190136,1742053879486,-500.0,0.00044383,120]
[356190137,1742053879495,-503.83869374,0.00044383,120]
[356190138,1742053879505,-715.78,0.00044383,120]
[356190139,1742053879514,-637.28,0.00044383,120]
[356190140,1742053879523,-500.0,0.00044383,120]
[356190141,1742053879532,-2182.86,0.00044383,120]
[356190142,1742053879542,-532.44,0.00044383,120]
[356190143,1742053879551,-500.0,0.00044383,120]
[356190144,1742053879560,-500.0,0.00044383,120]
[356190145,1742053879570,-500.0,0.00044383,120]
[356190146,1742053879581,-500.0,0.00044383,120]
[356190147,1742053879591,-500.0,0.00044383,120]
[356190148,1742053879601,-912.39,0.00044383,120]
[356190149,1742053879615,-500.0,0.00044383,120]
[356190150,1742053879625,-500.0,0.00044383,120]
[356190151,1742053879635,-569.88,0.00044383,120]
[356190152,1742053879644,-500.0,0.00044383,120]
[356190153,1742053879654,-859.69,0.00044383,120]
[356190154,1742053879664,-500.0,0.00044383,120]
[356190155,1742053879673,-500.0,0.00044383,120]
[356190156,1742053879684,-556.06,0.00044383,120]
[356190157,1742053879693,-500.0,0.00044383,120]
[356190158,1742053879703,-948.57,0.00044383,120]
[356190159,1742053879713,-489.50991466,0.00044383,120]
[356190160,1742053879722,-500.0,0.00044383,120]
[356190161,1742053879731,-500.0,0.00044383,2]
[356190162,1742053879741,-1103.3,0.00044383,120]
[356190163,1742053879750,-500.0,0.00044383,120]
[356190164,1742053879761,-500.0,0.00044383,120]
[356190165,1742053879771,-656.59,0.00044383,120]
[356190166,1742053879780,-500.0,0.00044383,120]
[356190167,1742053879790,-500.0,0.00044383,120]
[356190168,1742053879799,-500.0,0.00044383,120]